fUST/lending_fUST_20240512
["ID","MTS","AMOUNT","RATE_DAILY","PERIOD"]
[326846021,1715509862701,-1094.1,0.0005589,120]
[326846022,1715509862710,-550.14258095,0.0005589,120]
[326846023,1715509862720,-474.49873154,0.0005589,120]
[326846024,1715509862729,-760.68,0.0005589,120]
[326846025,1715509862739,-449.04780298,0.0005589,120]
[326846026,1715509862749,-1439.15,0.0005589,120]
[326846027,1715509862759,-500.0,0.0005589,120]
[326846028,1715509862769,-222.06586823,0.0005589,120]
[326846029,1715509862786,-500.0,0.0005589,120]
[326846030,1715509862803,-728.36,0.0005589,120]
[326846031,1715509862814,-554.07,0.0005589,120]
[326846032,1715509862824,-500.0,0.0005589,120]
[326846033,1715509862833,-500.0,0.0005589,120]
[326846034,1715509862843,-851.93,0.0005589,120]
[326846035,1715509862852,-21061.66,0.0005589,120]
[326846036,1715509862861,-500.0,0.0005589,120]
[326846037,1715509862870,-1275.67,0.0005589,120]
[326846038,1715509862879,-181.189708,0.0005589,2]
[326846039,1715509862889,-500.0,0.0005589,120]
[326846040,1715509862898,-697.89,0.0005589,120]
[326846041,1715509862907,-1584.34,0.0005589,120]
[326846042,1715509862916,-500.0,0.0005589,120]
[326846043,1715509862925,-1080.54,0.0005589,120]
[326846044,1715509862935,-181.189708,0.0005589,2]
[326846045,1715509862944,-502.06337151,0.0005589,120]
[326846046,1715509862953,-500.0,0.0005589,120]
[326846047,1715509862962,-500.0,0.0005589,120]
[326846048,1715509862972,-167.361754,0.00055969,2]
[326846049,1715509862981,-7330.18947323,0.00056,120]
[326846050,1715509862990,-259000.0,0.000564,30]
[326846051,1715509862999,-201.311562,0.000564,120]
[326846052,1715509863008,-168.472602,0.000564,120]
[326846053,1715509863017,-168.472602,0.000564,120]
[326846054,1715509863026,-151.0,0.000564,120]
[326846055,1715509863035,-151.0,0.000564,120]
[326846056,1715509863044,-151.0,0.000564,120]
[326846057,1715509863053,-151.0,0.000564,120]
[326846058,1715509863062,-519.044299,0.000564,120]
[326846059,1715509863071,-519.044299,0.000564,120]
[326846060,1715509863081,-151.0,0.000564,120]
[326846061,1715509863090,-287.597217,0.000564,120]
[326846062,1715509863100,-287.597217,0.000564,120]
[326846063,1715509863110,-181.189708,0.000564,2]
[326846064,1715509863119,-181.189708,0.000564,2]
[326846065,1715509863129,-237.0,0.000566,120]
[326846066,1715509863138,-151.0,0.00056795,120]
[326846067,1715509863147,-200.0,0.00056947,120]
[326846068,1715509863157,-500.0,0.00056986,120]
[326846069,1715509863166,-500.0,0.00056986,120]
[326846070,1715509863175,-500.0,0.00056986,120]
[326846071,1715509863186,-500.0,0.00056986,120]
[326846072,1715509863197,-500.0,0.00056986,120]
[326846073,1715509863207,-500.0,0.00056986,120]
[326846074,1715509863216,-500.0,0.00056986,120]
[326846075,1715509863225,-500.0,0.00056986,120]
[326846076,1715509863234,-500.0,0.00056986,120]
[326846077,1715509863243,-792.18,0.00056986,120]
[326846078,1715509863252,-700.0,0.00056986,120]
[326846079,1715509863261,-500.0,0.00056986,120]
[326846080,1715509863271,-500.0,0.00056986,120]
[326846081,1715509863281,-500.0,0.00056986,120]
[326846082,1715509863290,-300.0,0.00056986,2]
[326846083,1715509863299,-500.0,0.00056986,120]
[326846084,1715509863308,-500.0,0.00056986,7]
[326846085,1715509863317,-500.0,0.00056986,120]
[326846086,1715509863326,-500.0,0.00056986,120]
[326846087,1715509863335,-500.0,0.00056986,120]
[326846088,1715509863344,-500.0,0.00056986,120]
[326846089,1715509863353,-500.0,0.00056986,120]
[326846090,1715509863362,-500.0,0.00056986,120]
[326846091,1715509863371,-500.0,0.00056986,120]
[326846092,1715509863380,-500.0,0.00056986,120]
[326846093,1715509863389,-500.0,0.00056986,120]
[326846094,1715509863399,-460.27626492,0.00056986,120]
[326846095,1715509863408,-587.44465466,0.00056986,120]
[326846096,1715509863417,-523.88250626,0.00056986,120]
[326846097,1715509863427,-687.88,0.00056986,120]
[326846098,1715509863436,-1184.42,0.00056986,120]
[326846099,1715509863445,-622.05,0.00056986,120]
[326846100,1715509863454,-500.0,0.00056986,120]
[326846101,1715509863463,-500.0,0.00056986,120]
[326846102,1715509863472,-500.0,0.00056986,120]
[326846103,1715509863481,-500.0,0.00056986,120]
[326846104,1715509863490,-500.0,0.00056986,120]
[326846105,1715509863499,-429.1500162,0.00056986,120]
[326846106,1715509863508,-1188.88,0.00056986,120]
[326846107,1715509863517,-500.0,0.00056986,120]
[326846108,1715509863526,-500.0,0.00056986,120]
[326846109,1715509863535,-664.65,0.00056986,120]
[326846110,1715509863544,-500.0,0.00056986,120]
[326846111,1715509863553,-478.64061625,0.00056986,120]
[326846112,1715509863562,-500.0,0.00056986,2]
[326846113,1715509863572,-500.0,0.00056986,120]
[326846114,1715509863581,-500.0,0.00056986,120]
[326846115,1715509863589,-500.0,0.00056986,120]
[326846116,1715509863598,-500.0,0.00056986,120]
[326846117,1715509863607,-706.45,0.00056986,120]
[326846118,1715509863616,-589.94,0.00056986,120]
[326846119,1715509863640,-500.0,0.00056986,120]
[326846120,1715509863650,-500.0,0.00056986,120]
[326846121,1715509863659,-500.0,0.00056986,120]
[326846122,1715509863668,-500.0,0.00056986,120]
[326846123,1715509863678,-500.0,0.00056986,120]
[326846124,1715509863687,-500.0,0.00056986,120]
[326846125,1715509863696,-500.0,0.00056986,120]
[326846126,1715509863705,-718.87,0.00056986,120]
[326846127,1715509863714,-500.0,0.00056986,120]
[326846128,1715509863723,-668.81,0.00056986,120]
[326846129,1715509863732,-500.0,0.00056986,120]
[326846130,1715509863741,-1198.11,0.00056986,120]
[326846131,1715509863750,-500.0,0.00056986,120]
[326846132,1715509863759,-500.0,0.00056986,120]
[326846133,1715509863768,-859.74,0.00056986,120]
[326846134,1715509863777,-500.0,0.00056986,120]
[326846135,1715509863787,-1019.78,0.00056986,120]
[326846136,1715509863796,-475.3864834,0.00056986,120]
[326846137,1715509863806,-500.0,0.00056986,120]
[326846138,1715509863815,-500.0,0.00056986,120]
[326846139,1715509863824,-491.55428647,0.00056986,120]
[326846140,1715509863833,-500.0,0.00056986,120]
[326846141,1715509863842,-500.0,0.00056986,120]
[326846142,1715509863851,-500.0,0.00056986,120]
[326846143,1715509863861,-1222.61,0.00056986,120]
[326846144,1715509863871,-500.0,0.00056986,30]
[326846145,1715509863880,-500.0,0.00056986,120]
[326846146,1715509863890,-500.0,0.00056986,120]
[326846147,1715509863899,-1076.09,0.00056986,4]
[326846148,1715509863908,-500.0,0.00056986,120]
[326846149,1715509863917,-500.0,0.00056986,120]
[326846150,1715509864004,-777.18,0.00056986,120]
[326846151,1715509864020,-500.0,0.00056986,120]
[326846152,1715509864030,-500.0,0.00056986,120]
[326846153,1715509864039,-623.85,0.00056986,120]
[326846154,1715509864049,-1000.0,0.00056986,120]
[326846155,1715509864058,-525.7392879,0.00056986,120]
[326846156,1715509864068,-879.42,0.00056986,120]
[326846157,1715509864077,-500.0,0.00056986,120]
[326846158,1715509864086,-300.0,0.00056986,7]
[326846159,1715509864095,-500.0,0.00056986,120]
[326846160,1715509864105,-515.45287807,0.00056986,120]
[326846161,1715509864116,-500.0,0.00056986,120]
[326846162,1715509864129,-500.0,0.00056986,120]
[326846163,1715509864138,-500.0,0.00056986,120]
[326846164,1715509864147,-1022.56,0.00056986,120]
[326846165,1715509864156,-500.0,0.00056986,120]
[326846166,1715509864165,-500.0,0.00056986,120]
[326846167,1715509864174,-500.0,0.00056986,120]
[326846168,1715509864183,-500.0,0.00056986,120]
[326846169,1715509864197,-1415.7,0.00056986,120]
[326846170,1715509864205,-676.96,0.00056986,120]
[326846171,1715509864214,-702.94,0.00056986,120]
[326846172,1715509864224,-1146.59,0.00056986,120]
[326846173,1715509864233,-846.45,0.00056986,120]
[326846174,1715509864243,-500.0,0.00056986,120]
[326846175,1715509864251,-500.0,0.00056986,120]
[326846176,1715509864260,-1000.0,0.00056986,120]
[326846177,1715509864273,-500.0,0.00056986,120]
[326846178,1715509864282,-506.08,0.00056986,120]
[326846179,1715509864291,-694.21,0.00056986,120]
[326846180,1715509864300,-500.0,0.00056986,120]
[326846181,1715509864309,-534.57,0.00056986,120]
[326846182,1715509864318,-628.13,0.00056986,120]
[326846183,1715509864327,-500.0,0.00056986,120]
[326846184,1715509864337,-392.50204521,0.00056986,120]
[326846185,1715509864346,-500.0,0.00056986,120]
[326846186,1715509864355,-500.0,0.00056986,120]
[326846187,1715509864365,-500.0,0.00056986,120]
[326846188,1715509864375,-563.98,0.00056986,120]
[326846189,1715509864384,-500.0,0.00056986,120]
[326846190,1715509864394,-500.0,0.00056986,120]
[326846191,1715509864404,-500.0,0.00056986,120]
[326846192,1715509864413,-500.0,0.00056986,120]
[326846193,1715509864423,-500.0,0.00056986,120]
[326846194,1715509864431,-500.0,0.00056986,120]
[326846195,1715509864440,-500.0,0.00056986,120]
[326846196,1715509864449,-1333.29,0.00056986,120]
[326846197,1715509864458,-500.0,0.00056986,7]
[326846198,1715509864467,-500.0,0.00056986,120]
[326846199,1715509864476,-2080.97,0.00056986,120]
[326846200,1715509864485,-500.0,0.00056986,120]
[326846201,1715509864494,-500.0,0.00056986,120]
[326846202,1715509864503,-500.0,0.00056986,120]
[326846203,1715509864511,-500.0,0.00056986,120]
[326846204,1715509864520,-697.5,0.00056986,120]
[326846205,1715509864529,-500.0,0.00056986,120]
[326846206,1715509864538,-500.0,0.00056986,120]
[326846207,1715509864547,-1146.84,0.00056986,120]
[326846208,1715509864557,-500.0,0.00056986,120]
[326846209,1715509864566,-500.0,0.00056986,120]
[326846210,1715509864575,-151.0,0.00056986,120]
[326846211,1715509864584,-500.0,0.00056986,120]
[326846212,1715509864593,-632.00477309,0.00056986,120]
[326846213,1715509864602,-500.0,0.00056986,120]
[326846214,1715509864611,-500.0,0.00056986,120]
[326846215,1715509864620,-500.0,0.00056986,120]
[326846216,1715509864629,-1062.31,0.00056986,120]
[326846217,1715509864638,-500.0,0.00056986,120]
[326846218,1715509864647,-887.25,0.00056986,120]
[326846219,1715509864656,-500.0,0.00056986,120]
[326846220,1715509864665,-500.0,0.00056986,120]
[326846221,1715509864673,-365.43589068,0.00056986,120]
[326846222,1715509864682,-884.99,0.00056986,120]
[326846223,1715509864691,-1945.84,0.00056986,120]
[326846224,1715509864700,-1101.29,0.00056986,120]
[326846225,1715509864709,-683.11,0.00056986,120]
[326846226,1715509864718,-500.0,0.00056986,120]
[326846227,1715509864727,-500.0,0.00056986,120]
[326846228,1715509864735,-500.0,0.00056986,120]
[326846229,1715509864744,-500.0,0.00056986,120]
[326846230,1715509864753,-428.43856991,0.00056986,120]
[326846231,1715509864762,-500.0,0.00056986,120]
[326846232,1715509864771,-634.75,0.00056986,120]
[326846233,1715509864780,-500.0,0.00056986,120]
[326846234,1715509864789,-500.0,0.00056986,120]
[326846235,1715509864798,-1202.07,0.00056986,120]
[326846236,1715509864807,-500.0,0.00056986,120]
[326846237,1715509864816,-500.0,0.00056986,2]
[326846238,1715509864825,-500.0,0.00056986,120]
[326846239,1715509864834,-500.0,0.00056986,120]
[326846240,1715509864843,-652.77,0.00056986,120]
[326846241,1715509864852,-500.0,0.00056986,120]
[326846242,1715509864861,-665.8,0.00056986,120]
[326846243,1715509864871,-500.0,0.00056986,30]
[326846244,1715509864880,-2405.12,0.00056986,120]
[326846245,1715509864889,-1296.67,0.00056986,120]
[326846246,1715509864898,-500.0,0.00056986,120]
[326846247,1715509864907,-500.0,0.00056986,120]
[326846248,1715509864915,-515.15,0.00056986,120]
[326846249,1715509864924,-1000.0,0.00056986,120]
[326846250,1715509864933,-500.0,0.00056986,120]
[326846251,1715509864942,-1711.77,0.00056986,120]
[326846252,1715509864951,-500.0,0.00056986,120]
[326846253,1715509864960,-500.0,0.00056986,120]
[326846254,1715509864969,-634.68,0.00056986,120]
[326846255,1715509864978,-674.93,0.00056986,120]
[326846256,1715509864986,-500.0,0.00056986,120]
[326846257,1715509864995,-500.0,0.00056986,120]
[326846258,1715509865004,-542.97988749,0.00056986,120]
[326846259,1715509865013,-500.0,0.00056986,120]
[326846260,1715509865022,-519.445787,0.00056986,120]
[326846261,1715509865031,-491.02493224,0.00056986,120]
[326846262,1715509865039,-669.18,0.00056986,120]
[326846263,1715509865048,-662.7,0.00056986,120]
[326846264,1715509865058,-672.84,0.00056986,120]
[326846265,1715509865067,-500.0,0.00056986,120]
[326846266,1715509865075,-500.0,0.00056986,120]
[326846267,1715509865084,-500.0,0.00056986,120]
[326846268,1715509865093,-648.77010647,0.00056986,120]
[326846269,1715509865102,-500.0,0.00056986,120]
[326846270,1715509865111,-500.0,0.00056986,120]
[326846271,1715509865121,-211.66467807,0.00056986,120]
[326846272,1715509865130,-500.0,0.00056986,120]
[326846273,1715509865139,-500.0,0.00056986,120]
[326846274,1715509865148,-500.0,0.00056986,120]
[326846275,1715509865157,-500.0,0.00056986,120]
[326846276,1715509865167,-500.0,0.00056986,120]
[326846277,1715509865177,-500.0,0.00056986,120]
[326846278,1715509865192,-1082.38,0.00056986,120]
[326846279,1715509865204,-500.0,0.00056986,120]
[326846280,1715509865214,-500.0,0.00056986,120]
[326846281,1715509865223,-500.0,0.00056986,120]
[326846282,1715509865232,-2510.37,0.00056986,120]
[326846283,1715509865241,-500.0,0.00056986,120]
[326846284,1715509865250,-168.472602,0.00056986,120]
[326846285,1715509865260,-168.472602,0.00056986,120]
[326846286,1715509865269,-4167.16,0.00056986,120]
[326846287,1715509865278,-1216.89,0.00056986,7]
[326846288,1715509865286,-500.0,0.00056986,120]
[326846289,1715509865295,-568.37,0.00056986,120]
[326846290,1715509865304,-500.0,0.00056986,120]
[326846291,1715509865313,-500.0,0.00056986,120]
[326846292,1715509865322,-500.0,0.00056986,120]
[326846293,1715509865331,-500.0,0.00056986,120]
[326846294,1715509865340,-500.0,0.00056986,120]
[326846295,1715509865350,-634.17,0.00056986,120]
[326846296,1715509865359,-711.19,0.00056986,120]
[326846297,1715509865370,-645.64,0.00056986,120]
[326846298,1715509865460,-634.59,0.00056986,120]
[326846299,1715509865469,-522.61,0.00056986,120]
[326846300,1715509865479,-151.0,0.00056986,120]
[326846301,1715509865488,-1199.73,0.00056986,120]
[326846302,1715509865497,-852.85,0.00056986,120]
[326846303,1715509865506,-500.0,0.00056986,120]
[326846304,1715509865516,-500.0,0.00056986,120]
[326846305,1715509865526,-625.2,0.00056986,120]
[326846306,1715509865535,-500.0,0.00056986,120]
[326846307,1715509865546,-500.0,0.00056986,120]
[326846308,1715509865557,-728.74,0.00056986,120]
[326846309,1715509865565,-501.04,0.00056986,120]
[326846310,1715509865576,-588.33,0.00056986,120]
[326846311,1715509865586,-500.0,0.00056986,120]
[326846312,1715509865596,-500.0,0.00056986,120]
[326846313,1715509865605,-165.02124185,0.00056986,120]
[326846314,1715509865615,-1576.44,0.00056986,120]
[326846315,1715509865626,-500.0,0.00056986,120]
[326846316,1715509865635,-500.0,0.00056986,120]
[326846317,1715509865645,-500.0,0.00056986,120]
[326846318,1715509865654,-500.0,0.00056986,120]
[326846319,1715509865663,-642.78,0.00056986,120]
[326846320,1715509865672,-500.0,0.00056986,120]
[326846321,1715509865681,-500.0,0.00056986,120]
[326846322,1715509865693,-1474.83,0.00056986,120]
[326846323,1715509865703,-500.0,0.00056986,120]
[326846324,1715509865712,-500.0,0.00056986,120]
[326846325,1715509865721,-500.0,0.00056986,120]
[326846326,1715509865730,-1138.94,0.00056986,120]
[326846327,1715509865739,-500.0,0.00056986,120]
[326846328,1715509865748,-2052.53,0.00056986,120]
[326846329,1715509865757,-500.0,0.00056986,120]
[326846330,1715509865766,-3343.91,0.00056986,120]
[326846331,1715509865775,-500.0,0.00056986,120]
[326846332,1715509865784,-1280.34,0.00056986,120]
[326846333,1715509865794,-589.15,0.00056986,120]
[326846334,1715509865804,-184.15172683,0.00056986,120]
[326846335,1715509865813,-990.89,0.00056986,120]
[326846336,1715509865823,-1022.63,0.00056986,120]
[326846337,1715509865832,-1377.96,0.00056986,120]
[326846338,1715509865842,-500.0,0.00056986,120]
[326846339,1715509865851,-849.72,0.00056986,120]
[326846340,1715509865861,-500.0,0.00056986,120]
[326846341,1715509865871,-151.0,0.00056986,120]
[326846342,1715509865880,-500.0,0.00056986,120]
[326846343,1715509865889,-500.0,0.00056986,120]
[326846344,1715509865898,-500.0,0.00056986,120]
[326846345,1715509865908,-500.0,0.00056986,120]
[326846346,1715509865917,-500.0,0.00056986,120]
[326846347,1715509865927,-2169.41,0.00056986,120]
[326846348,1715509865936,-658.6,0.00056986,120]
[326846349,1715509865946,-926.02,0.00056986,120]
[326846350,1715509865955,-567.44357749,0.00056986,120]
[326846351,1715509865964,-500.0,0.00056986,120]
[326846352,1715509865973,-500.0,0.00056986,120]
[326846353,1715509865982,-2031.16,0.00056986,120]
[326846354,1715509865991,-500.0,0.00056986,120]
[326846355,1715509866000,-585.40893796,0.00056986,120]
[326846356,1715509866010,-1300.61,0.00056986,120]
[326846357,1715509866019,-4158.51,0.00056986,120]
[326846358,1715509866028,-401.80967124,0.00056986,120]
[326846359,1715509866038,-500.0,0.00056986,120]
[326846360,1715509866047,-1707.07,0.00056986,120]
[326846361,1715509866056,-500.0,0.00056986,120]
[326846362,1715509866065,-500.0,0.00056986,120]
[326846363,1715509866074,-747.04,0.00056986,120]
[326846364,1715509866084,-500.0,0.00056986,120]
[326846365,1715509866093,-610.04,0.00056986,120]
[326846366,1715509866102,-500.0,0.00056986,120]
[326846367,1715509866111,-500.0,0.00056986,120]
[326846368,1715509866121,-500.0,0.00056986,120]
[326846369,1715509866130,-616.93,0.00056986,120]
[326846370,1715509866139,-555.14,0.00056986,120]
[326846371,1715509866148,-500.0,0.00056986,120]
[326846372,1715509866158,-500.0,0.00056986,120]
[326846373,1715509866168,-500.0,0.00056986,120]
[326846374,1715509866178,-663.17,0.00056986,60]
[326846375,1715509866192,-1965.65,0.00056986,120]
[326846376,1715509866201,-500.0,0.00056986,120]
[326846377,1715509866211,-404.79043413,0.00056986,120]
[326846378,1715509866221,-500.0,0.00056986,120]
[326846379,1715509866231,-500.0,0.00056986,120]
[326846380,1715509866240,-1720.11,0.00056986,120]
[326846381,1715509866250,-500.0,0.00056986,120]
[326846382,1715509866259,-321.96479611,0.00056986,120]
[326846383,1715509866270,-1258.86,0.00056986,7]
[326846384,1715509866282,-500.0,0.00056986,120]
[326846385,1715509866291,-531.16,0.00056986,120]
[326846386,1715509866300,-500.0,0.00056986,120]
[326846387,1715509866310,-500.0,0.00056986,120]
[326846388,1715509866319,-500.0,0.00056986,120]
[326846389,1715509866330,-1275.8,0.00056986,120]
[326846390,1715509866339,-1330.34,0.00056986,120]
[326846391,1715509866348,-500.0,0.00056986,120]
[326846392,1715509866357,-1477.44,0.00056986,120]
[326846393,1715509866366,-500.0,0.00056986,120]
[326846394,1715509866376,-500.0,0.00056986,120]
[326846395,1715509866385,-500.0,0.00056986,120]
[326846396,1715509866394,-500.0,0.00056986,120]
[326846397,1715509866403,-500.0,0.00056986,120]
[326846398,1715509866412,-1415.41,0.00056986,120]
[326846399,1715509866422,-500.0,0.00056986,120]
[326846400,1715509866432,-790.3,0.00056986,120]
[326846401,1715509866442,-500.0,0.00056986,120]
[326846402,1715509866451,-500.0,0.00056986,120]
[326846403,1715509866460,-1299.65,0.00056986,120]
[326846404,1715509866469,-631.96,0.00056986,120]
[326846405,1715509866479,-2939.68,0.00056986,21]
[326846406,1715509866488,-775.43,0.00056986,120]
[326846407,1715509866497,-500.0,0.00056986,120]
[326846408,1715509866505,-500.0,0.00056986,120]
[326846409,1715509866514,-3584.43,0.00056986,120]
[326846410,1715509866523,-500.0,0.00056986,120]
[326846411,1715509866532,-4428.92,0.00056986,120]
[326846412,1715509866542,-974.56,0.00056986,120]
[326846413,1715509866551,-500.0,0.00056986,120]
[326846414,1715509866560,-1052.97,0.00056986,120]
[326846415,1715509866570,-721.17,0.00056986,120]
[326846416,1715509866579,-661.04,0.00056986,120]
[326846417,1715509866588,-500.0,0.00056986,120]
[326846418,1715509866598,-625.85,0.00056986,120]
[326846419,1715509866606,-500.0,0.00056986,120]
[326846420,1715509866615,-980.18,0.00056986,120]
[326846421,1715509866625,-614.26,0.00056986,120]
[326846422,1715509866634,-500.0,0.00056986,120]
[326846423,1715509866643,-1131.83,0.00056986,120]
[326846424,1715509866652,-151.0,0.00056986,120]
[326846425,1715509866661,-245.63759952,0.00056986,120]
[326846426,1715509866670,-500.0,0.00056986,120]
[326846427,1715509866679,-583.64,0.00056986,120]
[326846428,1715509866688,-513.88,0.00056986,120]
[326846429,1715509866698,-500.0,0.00056986,120]
[326846430,1715509866706,-265.979871,0.00056986,120]
[326846431,1715509866715,-500.0,0.00056986,120]
[326846432,1715509866724,-5121.64,0.00056986,120]
[326846433,1715509866733,-2410.3,0.00056986,120]
[326846434,1715509866820,-1457.89,0.00056986,120]
[326846435,1715509866830,-719.29,0.00056986,120]
[326846436,1715509866840,-500.0,0.00056986,120]
[326846437,1715509866849,-1228.7,0.00056986,120]
[326846438,1715509866858,-500.0,0.00056986,120]
[326846439,1715509866868,-500.0,0.00056986,120]
[326846440,1715509866878,-1264.94,0.00056986,120]
[326846441,1715509866887,-1513.78,0.00056986,120]
[326846442,1715509866897,-673.28,0.00056986,120]
[326846443,1715509866906,-500.0,0.00056986,120]
[326846444,1715509866914,-519.044299,0.00056986,120]
[326846445,1715509866924,-694.76,0.00056986,120]
[326846446,1715509866933,-1272.39,0.00056986,120]
[326846447,1715509866942,-519.044299,0.00056986,120]
[326846448,1715509866952,-2272.31,0.00056986,120]
[326846449,1715509866961,-500.0,0.00056986,120]
[326846450,1715509866970,-11483.2,0.00056986,120]
[326846451,1715509866980,-500.0,0.00056986,120]
[326846452,1715509866989,-500.0,0.00056986,120]
[326846453,1715509866998,-500.0,0.00056986,7]
[326846454,1715509867007,-606.15,0.00056986,120]
[326846455,1715509867016,-151.0,0.00056986,120]
[326846456,1715509867025,-500.0,0.00056986,120]
[326846457,1715509867035,-765.03,0.00056986,120]
[326846458,1715509867044,-287.597217,0.00056986,120]
[326846459,1715509867053,-500.0,0.00056986,120]
[326846460,1715509867062,-287.597217,0.00056986,120]
[326846461,1715509867073,-500.0,0.00056986,120]
[326846462,1715509867083,-500.0,0.00056986,120]
[326846463,1715509867093,-910.45,0.00056986,120]
[326846464,1715509867102,-1594.77,0.00056986,120]
[326846465,1715509867112,-749.73,0.00056986,120]
[326846466,1715509867122,-523.56396842,0.00056986,120]
[326846467,1715509867131,-1094.1,0.00056986,120]
[326846468,1715509867140,-760.68,0.00056986,120]
[326846469,1715509867149,-1439.15,0.00056986,120]
[326846470,1715509867159,-181.38930722,0.00056986,120]
[326846471,1715509867168,-217.785305,0.00056986,120]
[326846472,1715509867177,-728.36,0.00056986,120]
[326846473,1715509867194,-554.07,0.00056986,120]
[326846474,1715509867203,-157.22300654,0.00056986,120]
[326846475,1715509867212,-500.0,0.00056986,120]
[326846476,1715509867222,-851.93,0.00056986,120]
[326846477,1715509867231,-21061.66,0.00056986,120]
[326846478,1715509867241,-500.0,0.00056986,120]
[326846479,1715509867250,-1275.67,0.00056986,120]
[326846480,1715509867259,-500.0,0.00056986,120]
[326846481,1715509867268,-181.189708,0.00056986,2]
[326846482,1715509867278,-697.89,0.00056986,120]
[326846483,1715509867287,-1584.34,0.00056986,120]
[326846484,1715509867297,-232.13172026,0.00056986,120]
[326846485,1715509867306,-1080.54,0.00056986,120]
[326846486,1715509867315,-181.189708,0.00056986,2]
[326846487,1715509867323,-500.0,0.00056986,120]
[326846488,1715509867332,-500.0,0.00056986,120]
[326846489,1715509867341,-200.0,0.00057025,120]
[326846490,1715509867351,-150.74373565,0.00057294,2]
[326846491,1715509867360,-200.0,0.00057342,120]
[326846492,1715509867369,-557.0,0.00057534,120]
[326846493,1715509867378,-151.0,0.00057973,120]
[326846494,1715509867387,-500.0,0.00058082,120]
[326846495,1715509867396,-500.0,0.00058082,120]
[326846496,1715509867405,-500.0,0.00058082,120]
[326846497,1715509867414,-500.0,0.00058082,120]
[326846498,1715509867434,-500.0,0.00058082,120]
[326846499,1715509867451,-500.0,0.00058082,120]
[326846500,1715509867471,-618.13564336,0.00058082,120]
[326846501,1715509867491,-500.0,0.00058082,120]
[326846502,1715509867513,-500.0,0.00058082,120]
[326846503,1715509867532,-792.18,0.00058082,120]
[326846504,1715509867549,-700.0,0.00058082,120]
[326846505,1715509867564,-500.0,0.00058082,120]
[326846506,1715509867584,-366.52875632,0.00058082,120]
[326846507,1715509867604,-500.0,0.00058082,120]
[326846508,1715509867617,-304.21257774,0.00058082,2]
[326846509,1715509867635,-150.31805779,0.00058082,120]
[326846510,1715509867651,-500.0,0.00058082,7]
[326846511,1715509867667,-500.0,0.00058082,120]
[326846512,1715509867683,-178.07383232,0.00058082,120]
[326846513,1715509867699,-249.20197516,0.00058082,120]
[326846514,1715509867713,-500.0,0.00058082,120]
[326846515,1715509867728,-500.0,0.00058082,120]
[326846516,1715509867743,-500.0,0.00058082,120]
[326846517,1715509867758,-171.56742823,0.00058082,120]
[326846518,1715509867773,-500.0,0.00058082,120]
[326846519,1715509867788,-500.0,0.00058082,120]
[326846520,1715509867803,-687.88,0.00058082,120]